bitfinex-derivatives/quotes_SOLF0:USTF0_20250307
["timestamp","ask_amount","ask_price","bid_price","bid_amount"]
[1741338007251,26.4,144.12,144.07,6.9409]
[1741338007546,0.04797681,144.11,144.08,0.04723438]
[1741338007948,6.9399,144.09,144.08,0.04723438]
[1741338008942,6.9395,144.1,144.08,0.04723438]
[1741338009348,2.07577681,144.11,144.08,0.04723438]
[1741338009545,0.04797681,144.11,144.09,6.9399]
[1741338009746,0.04797681,144.11,144.08,0.04723438]
[1741338011247,0.04797681,144.11,144.1,6.9394]
[1741338011551,0.04797681,144.11,144.08,0.04723438]
[1741338011849,0.04797681,144.11,144.09,6.9396]
[1741338012050,0.04797681,144.11,144.08,0.04723438]
[1741338012251,0.04797681,144.11,144.1,6.9394]
[1741338012451,28.5364,144.16,144.08,0.04723438]
[1741338012851,26.48,144.16,144.14,6.9375]
[1741338013046,26.48,144.16,144.09,26.54]
[1741338013353,26.48,144.16,144.11,6.9389]
[1741338013547,1.9156,144.18,144.09,26.54]
[1741338013753,0.0477771,144.14,144.11,0.04712596]
[1741338014651,26.7,144.13,144.11,0.04712596]
[1741338014849,33.6384,144.13,144.11,0.04712596]
[1741338015054,26.7,144.13,144.11,0.04712596]
[1741338015455,6.9385,144.12,144.11,0.04712596]
[1741338015955,26.7,144.13,144.11,0.04712596]
[1741338016154,33.638,144.13,144.11,0.04712596]
[1741338016354,26.7,144.13,144.11,0.04712596]
[1741338017452,33.6381,144.13,144.11,0.04712596]
[1741338017756,26.7,144.13,144.11,0.04712596]
[1741338017952,6.9385,144.12,144.11,0.04712596]
[1741338018350,26.7,144.13,144.11,0.04712596]
[1741338019154,26.7077771,144.14,144.11,6.98612596]
[1741338020560,0.0477771,144.14,144.11,0.04712596]
[1741338022957,0.0477771,144.14,144.12,6.9382]
[1741338023559,0.0477771,144.14,144.11,0.04712596]
[1741338024256,6.9854771,144.14,144.11,0.04712596]
[1741338025161,0.0477771,144.14,144.11,0.04712596]
[1741338025550,0.0477771,144.14,144.13,6.938]
[1741338026855,0.0477771,144.14,144.12,6.9383]
[1741338027056,0.0477771,144.14,144.11,0.04712596]
[1741338027659,0.0477771,144.14,144.12,6.9382]
[1741338028464,0.0477771,144.14,144.13,6.938]
[1741338029761,0.0477771,144.14,144.11,6.98592596]
[1741338030167,0.0477771,144.14,144.11,0.04712596]
[1741338030554,26.5,144.13,144.11,0.04712596]
[1741338032267,26.5,144.13,144.11,6.98572596]
[1741338032659,0.0477771,144.14,144.13,6.938]
[1741338034162,0.0477771,144.14,144.11,0.04712596]
[1741338034357,229.02,144.17,144.11,0.04712596]
[1741338034554,229.02,144.17,144.11,3.90862596]
[1741338034854,235.9563,144.17,144.13,6.9376]
[1741338035261,235.9563,144.17,144.11,3.90862596]
[1741338035566,0.04362175,144.15,144.11,3.90862596]
[1741338036470,0.04362175,144.15,144.14,6.9375]
[1741338037962,229.02,144.17,144.16,6.9365]
[1741338038360,76.84013466,144.21,144.14,26.44]
[1741338038560,33.3538,144.22,144.18,6.9351]
[1741338038773,385.08893661,144.23,144.14,26.44]
[1741338039167,358.66893661,144.23,144.2,6.9344]
[1741338039374,0.04987013,144.2,144.14,26.44]
[1741338039671,356.67783661,144.23,144.14,26.44]
[1741338039672,356.67783661,144.23,144.2,0.05151435]
[1741338039873,0.04811538,144.18,144.14,26.44]
[1741338040073,6.934,144.22,144.17,6.9357]
[1741338040376,356.67783661,144.23,144.14,26.44]
[1741338040576,0.04542492,144.21,144.18,6.98364544]
[1741338041875,0.04542492,144.21,144.18,0.04804544]
[1741338042076,6.97992492,144.21,144.18,0.04804544]
[1741338043877,0.04542492,144.21,144.18,0.04804544]
[1741338044077,6.9349,144.2,144.18,0.04804544]
[1741338044472,0.04542492,144.21,144.18,0.04804544]
[1741338044771,6.97972492,144.21,144.18,0.04804544]
[1741338045165,0.04542492,144.21,144.18,6.98364544]
[1741338045573,0.04542492,144.21,144.18,0.04804544]
[1741338045772,0.04542492,144.21,144.18,26.34804544]
[1741338046375,0.04542492,144.21,144.2,6.9346]
[1741338052584,0.04542492,144.21,144.18,26.34804544]
[1741338052786,0.04542492,144.21,144.19,6.9348]
[1741338053082,0.04542492,144.21,144.18,26.34804544]
[1741338053679,0.04542492,144.21,144.2,6.9346]
[1741338056078,28.1205,144.27,144.18,26.34804544]
[1741338056276,26.12,144.27,144.18,26.3]
[1741338056684,33.0516,144.27,144.23,6.9329]
[1741338057176,0.05206062,144.26,144.24,0.05167349]
[1741338057383,0.05206062,144.26,144.25,6.9322]
[1741338058689,76.84013466,144.31,144.29,6.93]
[1741338059075,83.76963466,144.31,144.23,4.1387]
[1741338059275,83.76963466,144.31,144.27,6.9311]
[1741338059676,76.84013466,144.31,144.27,6.9311]
[1741338059877,0.04655244,144.3,144.28,0.05261935]
[1741338061985,6.9303,144.29,144.28,0.05261935]
[1741338062181,1.9881,144.29,144.2,26.06]
[1741338062385,1.9456,144.28,144.2,26.06]
[1741338062589,8.8767,144.28,144.22,6.9332]
[1741338062787,8.8767,144.28,144.2,26.06]
[1741338062987,1.9456,144.28,144.2,26.06]
[1741338063388,0.04806389,144.25,144.23,0.04836064]
[1741338063892,6.98046389,144.25,144.23,0.04836064]
[1741338064092,0.04806389,144.25,144.23,0.04836064]
[1741338065087,6.9327,144.24,144.23,0.04836064]
[1741338066895,0.04806389,144.25,144.23,0.04836064]
[1741338067693,6.98046389,144.25,144.23,0.04836064]
[1741338067889,0.04806389,144.25,144.23,0.04836064]
[1741338068191,6.9327,144.24,144.23,0.04836064]
[1741338071896,6.9347,144.2,144.16,8.9031]
[1741338072093,26.06,144.22,144.11,2.1271]
[1741338072289,1.9935,144.21,144.11,2.1271]
[1741338072692,6.9351,144.19,144.11,2.1271]
[1741338073088,0.04787793,144.16,144.14,0.04560763]
[1741338073286,0.04787793,144.16,144.15,6.9369]
[1741338076891,0.04787793,144.16,144.14,0.04560763]
[1741338077396,0.04787793,144.16,144.15,6.937]
[1741338083296,0.04787793,144.16,144.14,0.04560763]
[1741338084001,6.98447793,144.16,144.14,0.04560763]
[1741338084406,0.04787793,144.16,144.14,0.04560763]
[1741338085006,0.04787793,144.16,144.14,6.98310763]
[1741338086806,0.04787793,144.16,144.15,6.937]
[1741338097314,424.8349,144.23,144.14,25.86560763]
[1741338097509,25.78,144.22,144.14,25.86560763]
[1741338097710,25.78,144.22,144.14,25.82]
[1741338098612,0.05268705,144.19,144.17,0.04653164]
[1741338099010,0.05268705,144.19,144.18,6.9356]
[1741338103708,228.9,144.23,144.21,6.9338]
[1741338104819,228.94577683,144.23,144.21,6.98115737]
[1741338105519,228.94577683,144.23,144.22,6.9337]
[1741338106118,228.94577683,144.23,144.21,6.98125737]
[1741338106420,228.94577683,144.23,144.21,0.04735737]
[1741338107010,6.9337,144.22,144.21,0.04735737]
[1741338107210,228.94577683,144.23,144.07,228.88]
[1741338107211,228.94577683,144.23,144.13,25.76]
[1741338107418,228.9,144.23,144.16,6.9361]
[1741338107625,6.935,144.2,144.13,25.76]
[1741338107822,6.935,144.2,144.17,6.9358]
[1741338108227,25.76,144.21,144.17,6.9358]
[1741338108228,6.9352,144.19,144.17,6.9358]
[1741338108523,0.04994783,144.2,144.17,6.98369752]
[1741338108721,6.9351,144.19,144.17,0.04789752]
[1741338109520,6.9351,144.19,144.17,6.98389752]
[1741338109820,6.98484783,144.2,144.17,6.98389752]
[1741338110126,0.04994783,144.2,144.17,0.04789752]
[1741338110326,6.9356,144.18,144.17,0.04789752]
[1741338111031,9.0432,144.19,144.17,0.04789752]
[1741338111420,2.1079,144.19,144.17,0.04789752]
[1741338112524,25.80994783,144.2,144.18,6.9356]
[1741338114024,32.74454783,144.2,144.17,6.98379752]
[1741338114929,32.74454783,144.2,144.18,6.9356]
[1741338115127,32.74454783,144.2,144.17,0.04789752]
[1741338115128,0.04994783,144.2,144.17,0.04789752]
[1741338115625,0.04994783,144.2,144.19,6.9351]
[1741338116722,0.04994783,144.2,144.18,6.9353]
[1741338117831,0.04994783,144.2,144.19,6.9351]
[1741338126632,228.9,144.23,144.22,6.9337]
[1741338126837,1.9834,144.26,144.16,17.9523]
[1741338127341,1.9834,144.26,144.22,6.9333]
[1741338127741,1.9834,144.26,144.19,25.76]
[1741338128038,6.98306633,144.25,144.23,6.98456505]
[1741338128238,0.05056633,144.25,144.23,0.05146505]
[1741338128436,6.9327,144.24,144.23,0.05146505]
[1741338131543,32.74296633,144.25,144.23,0.05146505]
[1741338132040,6.9327,144.24,144.23,0.05146505]
[1741338134842,25.81056633,144.25,144.23,6.98436505]
[1741338135541,25.81056633,144.25,144.24,6.9327]
[1741338135745,32.74286633,144.25,144.23,0.05146505]
[1741338137241,6.9327,144.24,144.23,0.05146505]
[1741338138037,25.81056633,144.25,144.17,1.987]
[1741338138240,25.76,144.25,144.17,1.987]
[1741338139342,0.04765126,144.22,144.2,0.05223188]
[1741338140544,6.9344,144.21,144.2,0.05223188]
[1741338153664,29.22,144.21,144.1,4.1003]
[1741338153965,1.9719,144.2,144.11,6.9387]
[1741338154159,1.9719,144.2,144.1,4.1003]
[1741338154659,1.9719,144.2,144.14,0.05017546]
[1741338154863,0.04417934,144.16,144.14,0.05017546]
[1741338156359,6.98107934,144.16,144.14,0.05017546]
[1741338156553,0.04417934,144.16,144.14,0.05017546]
[1741338156866,6.937,144.15,144.14,0.05017546]
[1741338157166,0.04417934,144.16,144.14,0.05017546]
[1741338157467,6.98097934,144.16,144.14,0.05017546]
[1741338157858,0.04417934,144.16,144.14,0.05017546]
[1741338158062,6.937,144.15,144.14,0.05017546]
[1741338163165,6.98097934,144.16,144.14,0.05017546]
[1741338163365,0.04417934,144.16,144.14,0.05017546]
[1741338164465,6.98097934,144.16,144.14,0.05017546]
[1741338164670,0.04417934,144.16,144.14,0.05017546]
[1741338164869,6.937,144.15,144.14,0.05017546]
[1741338177877,6.937,144.15,144.14,7.546e-05]
[1741338178069,8.8854,144.15,144.14,7.546e-05]
[1741338181981,0.04417934,144.16,144.14,7.546e-05]
[1741338182576,6.937,144.15,144.14,7.546e-05]
[1741338183589,32.74097934,144.16,144.14,7.546e-05]
[1741338183779,25.80417934,144.16,144.14,6.93737546]
[1741338183977,25.80417934,144.16,144.14,7.546e-05]
[1741338184586,6.937,144.15,144.14,7.546e-05]
[1741338194790,83.7634985,144.15,144.14,7.546e-05]
[1741338196999,6.937,144.15,144.14,7.546e-05]
[1741338200791,32.697,144.15,144.14,7.546e-05]
[1741338201592,76.87067784,144.16,144.14,7.546e-05]
[1741338202196,76.87067784,144.16,144.15,6.937]
[1741338203296,63.96987784,144.16,144.15,6.937]
[1741338203493,61.55457784,144.16,144.15,6.937]
[1741338205005,0.04458842,144.17,144.16,6.9365]
[1741338208706,8.842e-05,144.17,144.16,10.3965]
[1741338209006,8.842e-05,144.17,144.16,12.4599]
[1741338209205,8.842e-05,144.17,144.16,74.4599]
[1741338222826,6.9311,144.28,144.25,6.9319]
[1741338223827,6.9311,144.28,144.26,6.9316]
[1741338224021,6.98177476,144.28,144.26,6.9316]
[1741338224323,0.05067476,144.28,144.26,6.9316]
[1741338224722,0.05067476,144.28,144.25,0.05158121]
[1741338224922,0.05067476,144.28,144.27,6.9313]
[1741338225327,0.05067476,144.28,144.26,6.9315]
[1741338226026,0.05067476,144.28,144.26,68.9315]
[1741338226328,0.05067476,144.28,144.27,6.9313]
[1741338230228,2.0806,144.36,144.34,6.9276]
[1741338230422,6.9263,144.38,144.34,6.9276]
[1741338231436,2.13527456,144.37,144.34,6.97646408]
[1741338231629,2.13527456,144.37,144.34,0.04886408]
[1741338231832,0.05307456,144.37,144.34,0.04886408]
[1741338232232,0.05307456,144.37,144.36,6.9269]
[1741338232537,80.62315315,144.42,144.35,25.7]
[1741338233237,80.62315315,144.42,144.37,6.9265]
[1741338233437,87.54755315,144.42,144.37,6.9265]
[1741338233741,11.0958,144.42,144.38,0.04414837]
[1741338233929,4.1714,144.42,144.38,0.04414837]
[1741338236237,6.9254,144.4,144.38,0.04414837]
[1741338236440,4.1714,144.42,144.38,0.04414837]
[1741338236743,6.9249,144.41,144.38,0.04414837]
[1741338237042,4.1714,144.42,144.38,0.04414837]
[1741338237432,6.9246,144.41,144.38,0.04414837]
[1741338238739,4.1714,144.42,144.38,0.04414837]
[1741338238940,6.9246,144.41,144.38,0.04414837]
[1741338239735,6.9246,144.41,144.38,6.97004837]
[1741338240941,6.9255,144.39,144.38,0.04414837]
[1741338241240,4.1714,144.42,144.34,25.7]
[1741338241542,6.9265,144.37,144.34,32.6276]
[1741338241940,4.1714,144.42,144.34,32.6276]
[1741338242245,4.1714,144.42,144.35,6.9271]
[1741338242445,0.05257869,144.39,144.37,0.0445203]
[1741338242636,0.05257869,144.39,144.34,25.7]
[1741338243141,6.9263,144.38,144.34,25.7]
[1741338243344,6.9263,144.38,144.34,6.9276]
[1741338243545,0.05257869,144.39,144.34,6.9276]
[1741338243737,0.05257869,144.39,144.35,0.04955449]
[1741338244245,6.9262,144.38,144.35,0.04955449]
[1741338244639,0.05257869,144.39,144.35,0.04955449]
[1741338245341,0.05257869,144.39,144.33,25.7]
[1741338245542,0.05257869,144.39,144.31,6.9292]
[1741338245934,0.05257869,144.39,144.32,6.9286]
[1741338246138,25.7,144.41,144.32,6.9286]
[1741338246542,6.9272,144.36,144.35,0.05247083]
[1741338246743,6.9272,144.36,144.32,6.9286]
[1741338246946,1.9584,144.37,144.3,25.7]
[1741338248044,0.05001361,144.35,144.32,6.97450702]
[1741338248243,6.97761361,144.35,144.32,6.97450702]
[1741338248448,0.05001361,144.35,144.32,0.04590702]
[1741338248949,6.97741361,144.35,144.32,0.04590702]
[1741338249144,0.05001361,144.35,144.33,6.9283]
[1741338249343,6.97741361,144.35,144.32,0.04590702]
[1741338249745,6.97741361,144.35,144.32,6.97450702]
[1741338250148,0.05001361,144.35,144.32,0.04590702]
[1741338250343,0.05001361,144.35,144.3,6.9296]
[1741338250739,0.05001361,144.35,144.29,6.9302]
[1741338250944,2.0837,144.36,144.29,6.9302]
[1741338251449,6.9291,144.32,144.31,0.05204824]
[1741338251849,6.9285,144.33,144.31,0.05204824]
[1741338252251,0.04957428,144.34,144.31,0.05204824]
[1741338252448,6.9284,144.33,144.31,6.98124824]
[1741338252656,6.9284,144.33,144.31,0.05204824]
[1741338253243,6.9289,144.32,144.31,0.05204824]
[1741338253743,0.04957428,144.34,144.31,0.05204824]
[1741338253938,6.9286,144.33,144.31,0.05204824]
[1741338255450,0.04957428,144.34,144.31,0.05204824]
[1741338255643,6.9289,144.32,144.31,0.05204824]
[1741338256646,0.04957428,144.34,144.31,0.05204824]
[1741338256647,6.9286,144.33,144.31,0.05204824]
[1741338256852,0.04957428,144.34,144.31,0.05204824]
[1741338257049,6.9289,144.32,144.31,0.05204824]
[1741338257248,0.04957428,144.34,144.27,25.7]
[1741338257451,25.7,144.33,144.27,25.7]
[1741338258246,6.97519743,144.31,144.29,0.0498417]
[1741338260255,0.04559743,144.31,144.2,2.0114]
[1741338260555,1.9414,144.3,144.2,2.0114]
[1741338260756,6.931,144.28,144.21,25.7]
[1741338260960,1.9414,144.3,144.21,25.7]
[1741338261253,8.8715,144.3,144.21,25.7]
[1741338261455,0.04652737,144.27,144.24,0.05203034]
[1741338262258,0.04652737,144.27,144.26,6.9315]
[1741338275667,2.737e-05,144.27,144.26,6.9315]
[1741338283774,2.737e-05,144.27,144.24,0.05203034]
[1741338284371,2.737e-05,144.27,144.26,6.9317]
[1741338284572,2.737e-05,144.27,144.26,32.6117]
[1741338286579,2.737e-05,144.27,144.26,32.6117]
[1741338287077,2.737e-05,144.27,144.26,6.9317]
[1741338300283,2.737e-05,144.27,144.24,0.05203034]
[1741338300886,2.737e-05,144.27,144.25,6.9322]
[1741338301092,2.737e-05,144.27,144.24,0.05203034]
[1741338301792,2.737e-05,144.27,144.25,6.9322]
[1741338302686,2.737e-05,144.27,144.24,0.05203034]
[1741338303091,2.737e-05,144.27,144.24,6.98453034]
[1741338303399,2.737e-05,144.27,144.24,0.05203034]
[1741338303686,2.737e-05,144.27,144.24,6.98453034]
[1741338303891,2.737e-05,144.27,144.24,0.05203034]
[1741338304393,2.737e-05,144.27,144.25,6.9322]
[1741338306592,2.737e-05,144.27,144.26,6.9317]
[1741338309496,2.737e-05,144.27,144.26,36.0717]
[1741338310387,2.737e-05,144.27,144.26,38.1101]
[1741338310585,82.7957172,144.35,144.34,6.9279]
[1741338310898,101.96070071,144.36,144.34,29.14]
[1741338311093,77.72000071,144.36,144.34,29.14]
[1741338311290,25.50930071,144.36,144.35,6.9274]
[1741338311686,0.50930071,144.36,144.35,10.3874]
[1741338312085,151.16322609,144.37,144.36,6.9269]
[1741338312285,97.54462609,144.37,144.36,6.9269]
[1741338312502,0.05312177,144.37,144.36,72.3869]
[1741338313101,2.177e-05,144.37,144.36,72.3869]
[1741338314095,115.57804082,144.44,144.36,65.46]
[1741338314395,115.57804082,144.44,144.34,25.68]
[1741338314698,115.57804082,144.44,144.34,27.06561729]
[1741338314894,115.57804082,144.44,144.43,6.9236]
[1741338315095,6.9188,144.53,144.43,32.5836]
[1741338315298,0.04664243,144.45,144.43,32.5836]
[1741338315492,17.94081019,144.52,144.43,32.5836]
[1741338315693,17.94081019,144.52,144.43,32.63046289]
[1741338315694,0.04743262,144.45,144.43,32.63046289]
[1741338315997,11.02141019,144.52,144.43,25.66]
[1741338316198,0.05306295,144.45,144.43,25.70792557]
[1741338316398,17.94111019,144.52,144.43,32.5832]
[1741338316597,0.05230386,144.45,144.43,32.62752674]
[1741338316793,11.02141019,144.52,144.43,32.5832]
[1741338316995,0.04988877,144.45,144.43,32.63033062]
[1741338317194,17.94081019,144.52,144.43,32.63033062]
[1741338317195,11.02141019,144.52,144.43,32.5832]
[1741338317396,0.05082091,144.45,144.43,32.63105822]
[1741338317698,6.9201,144.51,144.43,32.5832]
[1741338317898,0.04547401,144.45,144.43,32.63144418]
[1741338318101,13.84021019,144.51,144.43,32.63144418]
[1741338318297,0.04563858,144.45,144.43,32.63144418]
[1741338318488,13.84021019,144.51,144.43,25.70824418]
[1741338318801,0.05131143,144.45,144.44,6.923]
[1741338318994,6.92011019,144.51,144.43,25.70824418]
[1741338319295,0.05021013,144.46,144.45,6.9223]
[1741338319595,6.92011019,144.51,144.43,25.66]
[1741338319797,0.04869748,144.47,144.45,6.9226]
[1741338320799,0.04869748,144.47,144.44,0.05111426]
[1741338321402,0.04869748,144.47,144.45,6.9223]
[1741338322800,0.04869748,144.47,144.45,16.36516436]
[1741338323100,6.92011019,144.5,144.45,16.36516436]
[1741338323301,11.02071019,144.54,144.45,16.36516436]
[1741338323495,6.9196,144.52,144.45,16.36516436]
[1741338323700,11.02071019,144.54,144.45,16.36516436]
[1741338323701,4.62568028,144.54,144.46,45.01351737]
[1741338323895,4.62568028,144.54,144.47,25.64]
[1741338324100,6.96375735,144.51,144.49,0.05302503]
[1741338324396,0.04375735,144.51,144.49,0.05302503]
[1741338324595,6.9202,144.5,144.49,0.05302503]
[1741338325001,11.54588028,144.5,144.49,0.05302503]
[1741338325403,2.0945,144.55,144.49,0.05302503]
[1741338326301,6.9202,144.5,144.49,0.05302503]
[1741338326701,0.05172268,144.53,144.49,0.05302503]
[1741338327811,6.9202,144.5,144.49,0.05302503]
[1741338330906,194.0,144.98,144.49,228.43302503]
[1741338331103,29.19698478,144.97,144.5,1414.51321349]
[1741338331307,255.48,144.9,144.52,41.6]
[1741338331496,27.12,144.83,144.54,20.81]
[1741338331698,283.32802651,145.02,144.53,29.7529262]
[1741338331699,33.2125,144.79,144.55,1.38360428]
[1741338332004,0.04564565,144.68,144.55,1.38360428]
[1741338332197,27.18,144.7,144.55,1.38360428]
[1741338332399,27.18,144.7,144.61,6.9145]
[1741338332603,27.18,144.7,144.6,27.18]
[1741338332807,0.04368295,144.67,144.64,0.04990761]
[1741338333007,0.04368295,144.67,144.55,1.38360428]
[1741338333209,27.16,144.66,144.56,27.16]
[1741338334010,27.16,144.66,144.57,62.0]
[1741338334405,0.04801133,144.62,144.6,0.04911723]
[1741338337508,27.06,144.67,144.61,62.0]
[1741338338211,27.08,144.68,144.6,6.99653287]
[1741338338710,0.04410411,144.65,144.63,0.04450596]
[1741338339909,0.04410411,144.65,144.64,6.9135]
[1741338341304,0.04410411,144.65,144.64,68.9135]
[1741338341504,0.04410411,144.65,144.64,95.9135]
[1741338341903,0.04410411,144.65,144.63,0.04450596]
[1741338342113,0.04410411,144.65,144.6,9.44286436]
[1741338343215,0.04410411,144.65,144.64,6.9135]
[1741338344016,0.04410411,144.65,144.63,6.9138]
[1741338344316,0.04410411,144.65,144.61,0.04506111]
[1741338344521,10.1266351,144.71,144.62,9.44286436]
[1741338345823,0.04471378,144.68,144.65,0.04817002]
[1741338346417,0.04471378,144.68,144.67,6.9121]
[1741338348123,10.1266351,144.71,144.66,44.45364557]
[1741338348726,228.38,144.72,144.66,44.45364557]
[1741338348927,228.38,144.72,144.71,6.9102]
[1741338349527,0.04791377,144.73,144.72,6.9097]
[1741338351529,0.04791377,144.73,144.7,37.82444337]
[1741338351728,4.1592,144.74,144.7,37.82444337]
[1741338351927,4.1592,144.74,144.72,6.9094]
[1741338352133,4.1592,144.74,144.7,37.82444337]
[1741338352527,4.1592,144.74,144.73,6.9092]
[1741338353129,2.0346,144.77,144.71,16.04625143]
[1741338353334,2.0346,144.77,144.75,6.9083]
[1741338353335,4.0155,144.76,144.75,6.9083]
[1741338355536,4.0155,144.76,144.75,141.46620274]
[1741338355838,33.8256,144.81,144.76,6.9078]
[1741338356042,26.92,144.81,144.75,134.55790274]
[1741338356239,26.92,144.81,144.77,0.04440827]
[1741338357037,26.92,144.81,144.77,6.95160827]
[1741338357237,26.92,144.81,144.77,0.04440827]
[1741338357542,33.8257,144.81,144.77,0.04440827]
[1741338357842,26.92,144.81,144.77,0.04440827]
[1741338359142,33.8257,144.81,144.77,6.95150827]
[1741338359540,26.92,144.81,144.77,0.04440827]
[1741338359944,30.38,144.81,144.72,40.98247867]
[1741338360141,6.9081,144.76,144.72,40.98247867]
[1741338360340,26.84,144.77,144.72,40.98247867]
[1741338360735,6.9086,144.75,144.72,40.98247867]
[1741338360939,26.84,144.77,144.72,34.56627867]
[1741338361140,0.05053785,144.75,144.72,34.61751803]
[1741338361345,6.909,144.74,144.72,34.61751803]
[1741338361548,6.909,144.74,144.72,22.74771803]
[1741338361844,33.7292,144.73,144.72,17.69921803]
[1741338362044,33.7292,144.73,144.64,121.94794592]
[1741338362045,254.82,144.73,144.68,37.40159929]
[1741338362948,6.9108,144.7,144.68,37.40159929]
[1741338363245,6.9108,144.7,144.69,0.04452935]
[1741338363842,6.96158655,144.72,144.69,0.04452935]
[1741338364146,0.05158655,144.72,144.69,0.04452935]
[1741338364344,6.9102,144.71,144.69,0.04452935]
[1741338364744,0.05158655,144.72,144.69,0.04452935]
[1741338365047,6.9107,144.7,144.69,0.04452935]
[1741338365344,0.05158655,144.72,144.62,26.76]
[1741338365646,6.9124,144.67,144.62,33.6744]
[1741338366039,6.9124,144.67,144.62,6.9144]
[1741338366334,26.76,144.69,144.61,30.7259]
[1741338366335,26.76,144.69,144.61,3.9859]
[1741338366544,0.04749978,144.66,144.63,0.05020581]
[1741338368045,6.9134,144.65,144.63,0.05020581]
[1741338368244,0.04749978,144.66,144.63,0.05020581]
[1741338368550,6.9135,144.64,144.63,0.05020581]
[1741338369048,6.96019978,144.66,144.63,0.05020581]
[1741338370450,0.04749978,144.66,144.63,0.05020581]
[1741338370846,6.96029978,144.66,144.63,6.96390581]
[1741338371749,0.04749978,144.66,144.63,0.05020581]
[1741338372349,0.04749978,144.66,144.64,6.9135]
[1741338373755,0.04749978,144.66,144.63,0.05020581]
[1741338374344,6.9135,144.65,144.63,0.05020581]
[1741338374550,0.04749978,144.66,144.63,0.05020581]
[1741338374855,6.9131,144.65,144.63,0.05020581]
[1741338375754,0.04749978,144.66,144.63,0.05020581]
[1741338376353,0.04749978,144.66,144.64,6.9132]
[1741338376552,0.04749978,144.66,144.63,0.05020581]
[1741338376752,0.04749978,144.66,144.64,6.9134]
[1741338376949,0.04749978,144.66,144.63,0.05020581]
[1741338378454,6.9135,144.64,144.63,0.05020581]
[1741338379561,6.9135,144.64,144.63,5.81e-06]
[1741338382363,10.3735,144.64,144.63,5.81e-06]
[1741338382564,238.5135,144.64,144.63,5.81e-06]
[1741338382963,235.0535,144.64,144.63,5.81e-06]
[1741338384763,238.5135,144.64,144.63,5.81e-06]
[1741338391576,261.5135,144.64,144.63,5.81e-06]
[1741338392074,264.9735,144.64,144.63,5.81e-06]
[1741338393773,235.0535,144.64,144.63,5.81e-06]
[1741338395779,228.14,144.64,144.63,5.81e-06]
[1741338396871,235.0535,144.64,144.63,5.81e-06]
[1741338397179,228.14,144.64,144.63,5.81e-06]
[1741338398570,235.0535,144.64,144.63,5.81e-06]
[1741338399475,231.844,144.64,144.63,5.81e-06]
[1741338399974,258.244,144.64,144.63,5.81e-06]
[1741338404774,261.704,144.64,144.63,5.81e-06]
[1741338420892,291.10762235,144.64,144.63,5.81e-06]
[1741338422793,306.07617468,144.64,144.63,5.81e-06]
[1741338424094,340.74267468,144.64,144.45,37.40159929]
[1741338424291,6.9198,144.51,144.49,2.0361]
[1741338424489,26.16,144.54,144.49,2.0361]
[1741338425389,6.9202,144.5,144.49,2.0361]
[1741338425590,26.14,144.5,144.46,4.0279]
[1741338425794,6.9207,144.49,144.48,0.04673406]
[1741338425990,6.9207,144.49,144.48,3.406e-05]
[1741338426191,6.96833847,144.49,144.48,3.406e-05]
[1741338427390,6.9217,144.47,144.46,3.406e-05]
[1741338429591,6.9221,144.46,144.45,0.0504832]
[1741338429903,33.0221,144.46,144.45,0.0504832]
[1741338430200,26.1,144.46,144.39,37.40159929]
[1741338430700,6.9239,144.43,144.39,37.40159929]
[1741338430901,6.9239,144.43,144.4,2.0376]
[1741338431202,6.97307198,144.43,144.4,2.08500904]
[1741338431497,6.9241,144.42,144.4,2.08500904]
[1741338431701,0.04917198,144.43,144.4,2.08500904]
[1741338431906,6.9227,144.45,144.4,9.00970904]
[1741338432100,220.06,144.49,144.4,28.14500904]
[1741338432497,220.06,144.49,144.4,28.0976]
[1741338432696,6.9216,144.48,144.43,6.9234]
[1741338433101,220.06,144.49,144.44,0.04666682]
[1741338433303,26.06,144.49,144.44,0.04666682]
[1741338433603,6.9194,144.52,144.48,6.9209]
[1741338433804,6.9194,144.52,144.49,2.0336]
[1741338434101,3.7092,144.52,144.49,2.0336]
[1741338434299,6.9199,144.51,144.49,2.08098383]
[1741338434500,0.05185853,144.52,144.49,2.08098383]
[1741338434998,6.9202,144.5,144.49,2.08098383]
[1741338435502,3.7104,144.5,144.49,2.08098383]
[1741338435702,3.7104,144.5,144.49,0.04738383]
[1741338448100,32.85155853,144.52,144.49,0.04738383]